fUST/lending_fUST_20250920
["ID","MTS","AMOUNT","RATE_DAILY","PERIOD"]
[386503491,1758324632754,-500.0,0.00021267,2]
[386503492,1758324632763,-500.0,0.00021267,2]
[386503493,1758324632773,-500.0,0.00021267,2]
[386503494,1758324632783,-500.0,0.00021267,2]
[386503495,1758324632792,-500.0,0.00021267,2]
[386503496,1758324632801,-500.0,0.00021267,2]
[386503497,1758324632810,-500.0,0.00021267,2]
[386503498,1758324632820,-177.95042756,0.00021267,2]
[386503499,1758324632829,-500.0,0.00021267,2]
[386503500,1758324632839,-500.0,0.00021267,2]
[386503501,1758324632848,-300.0,0.00021267,2]
[386503502,1758324632857,-500.0,0.00021267,2]
[386503503,1758324632867,-500.0,0.00021267,2]
[386503504,1758324632876,-500.0,0.00021267,2]
[386503505,1758324632885,-500.0,0.00021267,2]
[386503506,1758324632895,-500.0,0.00021267,2]
[386503507,1758324632904,-500.0,0.00021267,2]
[386503508,1758324632912,-500.0,0.00021267,2]
[386503509,1758324632921,-366.34083261,0.00021267,2]
[386503510,1758324632930,-500.0,0.00021267,2]
[386503511,1758324632940,-284.09662881,0.00021267,2]
[386503512,1758324632949,-564.6716399,0.00021267,2]
[386503513,1758324632958,-385.07062232,0.00021267,2]
[386503514,1758324632967,-425.5,0.00021271,2]
[386503515,1758324632977,-480.0,0.00021271,2]
[386503516,1758324632987,-480.0,0.00021272,2]
[386503517,1758324632996,-480.0,0.00021272,2]
[386503518,1758324633005,-480.0,0.00021272,2]
[386503519,1758324633015,-480.0,0.00021272,2]
[386503520,1758324633024,-480.0,0.00021272,2]
[386503521,1758324633034,-480.0,0.00021272,2]
[386503522,1758324633043,-480.0,0.00021272,2]
[386503523,1758324633052,-480.0,0.00021272,2]
[386503524,1758324633061,-480.0,0.00021272,2]
[386503525,1758324633071,-480.0,0.00021272,2]
[386503526,1758324633080,-480.0,0.00021272,2]
[386503527,1758324633089,-480.0,0.00021272,2]
[386503528,1758324633099,-480.0,0.00021272,2]
[386503529,1758324633109,-480.0,0.00021272,2]
[386503530,1758324633118,-345.84244231,0.00021272,2]
[386503531,1758324633128,-624.87,0.00021272,2]
[386503532,1758324633137,-480.0,0.00021272,2]
[386503533,1758324633148,-480.0,0.00021272,2]
[386503534,1758324633157,-524.33,0.00021272,2]
[386503535,1758324633167,-480.0,0.00021272,2]
[386503536,1758324633177,-480.0,0.00021272,2]
[386503537,1758324633187,-480.0,0.00021272,2]
[386503538,1758324633200,-480.0,0.00021272,2]
[386503539,1758324633210,-480.0,0.00021272,2]
[386503540,1758324633220,-401.72108645,0.00021272,2]
[386503541,1758324633229,-480.0,0.00021272,2]
[386503542,1758324633240,-480.0,0.00021272,2]
[386503543,1758324633249,-480.0,0.00021272,2]
[386503544,1758324633259,-480.0,0.00021272,2]
[386503545,1758324633270,-480.0,0.00021272,2]
[386503546,1758324633280,-480.0,0.00021272,2]
[386503547,1758324633290,-480.0,0.00021272,2]
[386503548,1758324633299,-480.0,0.00021272,2]
[386503549,1758324633309,-500.59554327,0.00021273,2]
[386503550,1758324633319,-480.0,0.00021273,2]
[386503551,1758324633328,-480.0,0.00021273,2]
[386503552,1758324633338,-492.65385136,0.00021273,2]
[386503553,1758324633347,-150.0,0.00021273,2]
[386503554,1758324633356,-480.0,0.00021273,2]
[386503555,1758324633366,-230.92,0.00021273,2]
[386503556,1758324633376,-480.0,0.00021273,2]
[386503557,1758324633386,-480.0,0.00021273,2]
[386503558,1758324633396,-480.0,0.00021273,2]
[386503559,1758324633405,-480.0,0.00021273,2]
[386503560,1758324633415,-480.0,0.00021273,2]
[386503561,1758324633423,-480.0,0.00021273,2]
[386503562,1758324633433,-433.54604035,0.00021273,2]
[386503563,1758324633442,-480.0,0.00021273,2]
[386503564,1758324633452,-480.0,0.00021273,2]
[386503565,1758324633461,-480.0,0.00021273,2]
[386503566,1758324633471,-480.0,0.00021273,2]
[386503567,1758324633480,-480.0,0.00021273,2]
[386503568,1758324633489,-480.0,0.00021273,2]
[386503569,1758324633499,-301.8,0.00021273,2]
[386503570,1758324633509,-600.66778661,0.00021273,2]
[386503571,1758324633518,-480.0,0.00021273,2]
[386503572,1758324633528,-480.0,0.00021273,2]
[386503573,1758324633537,-480.0,0.00021273,2]
[386503574,1758324633547,-157.86470853,0.00021273,2]
[386503575,1758324633556,-480.0,0.00021273,2]
[386503576,1758324633565,-72374.39474471,0.00021274,2]
[386503577,1758324633579,-141369.39118124,0.00021274,2]
[386503578,1758324633588,-480.0,0.00021373,2]
[386503579,1758324633598,-480.0,0.00021373,2]
[386503580,1758324633607,-480.0,0.00021373,2]
[386503581,1758324633617,-1125.65,0.00021374,2]
[386503582,1758324633627,-480.0,0.00021374,2]
[386503583,1758324633636,-480.0,0.00021374,2]
[386503584,1758324633645,-480.0,0.0002154,2]
[386503585,1758324633655,-480.0,0.00021545,2]
[386503586,1758324633664,-480.0,0.00021546,2]
[386503587,1758324633674,-480.0,0.00021546,2]
[386503588,1758324633684,-480.0,0.00021546,2]
[386503589,1758324633694,-480.0,0.00021546,2]
[386503590,1758324633704,-480.0,0.00021546,2]
[386503591,1758324633713,-480.0,0.00021546,2]
[386503592,1758324633723,-480.0,0.00021546,2]
[386503593,1758324633732,-480.0,0.00021546,2]
[386503594,1758324633742,-423.31905693,0.00021546,2]
[386503595,1758324633751,-524.33,0.00021546,2]
[386503596,1758324633761,-480.0,0.00021546,2]
[386503597,1758324633770,-480.0,0.00021546,2]
[386503598,1758324633780,-480.0,0.00021546,2]
[386503599,1758324633789,-480.0,0.00021546,2]
[386503600,1758324633799,-480.0,0.00021546,2]
[386503601,1758324633809,-480.0,0.00021546,2]
[386503602,1758324633819,-480.0,0.00021546,2]
[386503603,1758324633829,-480.0,0.00021546,2]
[386503604,1758324633839,-480.0,0.00021547,2]
[386503605,1758324633848,-480.0,0.00021547,2]
[386503606,1758324633858,-480.0,0.00021547,2]
[386503607,1758324633867,-480.0,0.00021647,2]
[386503608,1758324633876,-480.0,0.00021647,2]
[386503609,1758324633886,-480.0,0.00021647,2]
[386503610,1758324633895,-1125.65,0.00021648,2]
[386503611,1758324633905,-480.0,0.00021648,2]
[386503612,1758324633914,-480.0,0.00021648,2]
[386503613,1758324633924,-480.0,0.00021819,2]
[386503614,1758324633933,-480.0,0.0002182,2]
[386503615,1758324633943,-480.0,0.0002182,2]
[386503616,1758324633952,-480.0,0.0002182,2]
[386503617,1758324633962,-480.0,0.0002182,2]
[386503618,1758324633972,-480.0,0.0002182,2]
[386503619,1758324633981,-565.93097833,0.0002182,2]
[386503620,1758324633991,-524.33,0.0002182,2]
[386503621,1758324634000,-480.0,0.0002182,2]
[386503622,1758324634010,-480.0,0.0002182,2]
[386503623,1758324634019,-480.0,0.0002182,2]
[386503624,1758324634029,-480.0,0.0002182,2]
[386503625,1758324634038,-480.0,0.0002182,2]
[386503626,1758324634047,-480.0,0.0002182,2]
[386503627,1758324634057,-480.0,0.0002182,2]
[386503628,1758324634066,-480.0,0.00021821,2]
[386503629,1758324634076,-480.0,0.00021821,2]
[386503630,1758324634085,-503.62831199,0.00021876,2]
[386503631,1758324634095,-500.0,0.00021895,2]
[386503632,1758324634105,-500.0,0.00021919,2]
[386503633,1758324634114,-500.0,0.00021919,2]
[386503634,1758324634123,-500.0,0.00021919,2]
[386503635,1758324634133,-500.0,0.00021919,2]
[386503636,1758324634142,-500.0,0.00021919,2]
[386503637,1758324634152,-500.0,0.00021919,2]
[386503638,1758324634161,-480.0,0.00021921,2]
[386503639,1758324634170,-480.0,0.00021921,2]
[386503640,1758324634281,-480.0,0.00021921,2]
[386503641,1758324634294,-1125.65,0.00021922,2]
[386503642,1758324634303,-480.0,0.00021922,2]
[386503643,1758324634313,-480.0,0.00021922,2]
[386503644,1758324634323,-500.0,0.00021981,2]
[386503645,1758324634333,-500.0,0.00021981,2]
[386503646,1758324634342,-500.0,0.00021981,2]
[386503647,1758324634352,-34204.59280734,0.0002199,2]
[386503648,1758324634361,-502.61682343,0.00021993,2]
[386503649,1758324634372,-417.41746185,0.00021994,2]
[386503650,1758324634383,-2065.99,0.00022,7]
[386503651,1758324634392,-500.0,0.00022033,2]
[386503652,1758324634401,-500.0,0.00022033,2]
[386503653,1758324634411,-480.0,0.00022093,2]
[386503654,1758324634420,-480.0,0.00022094,2]
[386503655,1758324634430,-480.0,0.00022094,2]
[386503656,1758324634440,-480.0,0.00022094,2]
[386503657,1758324634450,-480.0,0.00022094,2]
[386503658,1758324634459,-480.0,0.00022094,2]
[386503659,1758324634469,-524.33,0.00022094,2]
[386503660,1758324634478,-369.46279992,0.00022094,2]
[386503661,1758324634487,-480.0,0.00022094,2]
[386503662,1758324634497,-480.0,0.00022094,2]
[386503663,1758324634506,-617.91,0.00022094,2]
[386503664,1758324634516,-480.0,0.00022095,2]
[386503665,1758324634525,-9441.79990423,0.000221,2]
[386503666,1758324634534,-629.72,0.00022195,2]
[386503667,1758324634544,-480.0,0.00022195,2]
[386503668,1758324634553,-480.0,0.00022195,2]
[386503669,1758324634562,-1125.65,0.00022196,2]
[386503670,1758324634572,-480.0,0.00022196,2]
[386503671,1758324634582,-480.0,0.00022196,2]
[386503672,1758324634592,-444.90046794,0.00022325,2]
[386503673,1758324634601,-480.0,0.00022367,2]
[386503674,1758324634611,-480.0,0.00022368,2]
[386503675,1758324634620,-480.0,0.00022368,2]
[386503676,1758324634630,-480.0,0.00022368,2]
[386503677,1758324634639,-480.0,0.00022368,2]
[386503678,1758324634648,-480.0,0.00022368,2]
[386503679,1758324634658,-524.33,0.00022368,2]
[386503680,1758324634667,-480.0,0.00022368,2]
[386503681,1758324634677,-480.0,0.00022368,2]
[386503682,1758324634686,-480.0,0.00022369,2]
[386503683,1758324634696,-1003.70918573,0.00022467,2]
[386503684,1758324634705,-1000.0,0.00022467,2]
[386503685,1758324634715,-1000.0,0.00022467,2]
[386503686,1758324634724,-1000.0,0.00022467,2]
[386503687,1758324634734,-794.6127472,0.00022467,2]
[386503688,1758324634744,-480.0,0.00022469,2]
[386503689,1758324634753,-480.0,0.00022469,2]
[386503690,1758324634763,-1125.65,0.0002247,2]
[386503691,1758324634773,-480.0,0.0002247,2]
[386503692,1758324634782,-500.0,0.00022529,2]
[386503693,1758324634792,-383.59525871,0.00022581,2]
[386503694,1758324634801,-480.0,0.00022641,2]
[386503695,1758324634811,-480.0,0.00022642,2]
[386503696,1758324634820,-480.0,0.00022642,2]
[386503697,1758324634830,-480.0,0.00022642,2]
[386503698,1758324634840,-480.0,0.00022642,2]
[386503699,1758324634849,-480.0,0.00022642,2]
[386503700,1758324634859,-524.33,0.00022642,2]
[386503701,1758324634869,-480.0,0.00022642,2]
[386503702,1758324634879,-480.0,0.00022642,2]
[386503703,1758324634888,-480.0,0.00022643,2]
[386503704,1758324634897,-480.0,0.00022743,2]
[386503705,1758324634907,-480.0,0.00022743,2]
[386503706,1758324634915,-1125.65,0.00022744,2]
[386503707,1758324634927,-480.0,0.00022744,2]
[386503708,1758324634937,-480.0,0.00022915,2]
[386503709,1758324634946,-480.0,0.00022916,2]
[386503710,1758324634956,-480.0,0.00022916,2]
[386503711,1758324634965,-480.0,0.00022916,2]
[386503712,1758324634975,-480.0,0.00022916,2]
[386503713,1758324634985,-480.0,0.00022916,2]
[386503714,1758324634995,-524.33,0.00022916,2]
[386503715,1758324635005,-480.0,0.00022916,2]
[386503716,1758324635014,-480.0,0.00022916,2]
[386503717,1758324635023,-480.0,0.00022917,2]
[386503718,1758324635032,-160.0,0.00022969,2]
[386503719,1758324635042,-160.0,0.00023,2]
[386503720,1758324635051,-233.43972884,0.00023,2]
[386503721,1758324635061,-848.13460282,0.00023,2]
[386503722,1758324635070,-160.0,0.00023,2]
[386503723,1758324635080,-500.0,0.00023015,2]
[386503724,1758324635090,-500.0,0.00023015,2]
[386503725,1758324635099,-500.0,0.00023015,2]
[386503726,1758324635109,-480.0,0.00023017,2]
[386503727,1758324635119,-480.0,0.00023017,2]
[386503728,1758324635128,-1125.65,0.00023018,2]
[386503729,1758324635138,-480.0,0.00023018,2]
[386503730,1758324635147,-480.0,0.00023189,2]
[386503731,1758324635156,-245.39,0.0002319,2]
[386503732,1758324635166,-480.0,0.0002319,2]
[386503733,1758324635175,-480.0,0.0002319,2]
[386503734,1758324635185,-480.0,0.0002319,2]
[386503735,1758324635201,-480.0,0.0002319,2]
[386503736,1758324635210,-524.33,0.0002319,2]
[386503737,1758324635219,-480.0,0.0002319,2]
[386503738,1758324635228,-480.0,0.0002319,2]
[386503739,1758324635238,-480.0,0.00023191,2]
[386503740,1758324635248,-480.0,0.00023291,2]
[386503741,1758324635257,-480.0,0.00023291,2]
[386503742,1758324635268,-1125.65,0.00023292,2]
[386503743,1758324635277,-480.0,0.00023292,2]
[386503744,1758324635287,-250.0,0.0002341,2]
[386503745,1758324635296,-500.0,0.0002341,2]
[386503746,1758324635306,-250.0,0.0002341,2]
[386503747,1758324635315,-500.0,0.0002341,2]
[386503748,1758324635327,-500.0,0.0002341,2]
[386503749,1758324635336,-500.0,0.0002341,2]
[386503750,1758324635345,-500.0,0.0002341,2]
[386503751,1758324635355,-500.0,0.0002341,2]
[386503752,1758324635365,-500.0,0.0002341,2]
[386503753,1758324635374,-1000.0,0.0002341,2]
[386503754,1758324635383,-500.0,0.0002341,2]
[386503755,1758324635393,-1000.0,0.0002341,2]
[386503756,1758324635404,-500.0,0.0002341,2]
[386503757,1758324635413,-500.0,0.0002341,2]
[386503758,1758324635424,-1000.0,0.0002341,2]
[386503759,1758324635433,-500.0,0.0002341,2]
[386503760,1758324635442,-383.37320078,0.0002341,2]
[386503761,1758324635451,-500.0,0.0002341,2]
[386503762,1758324635461,-151.0,0.0002341,2]
[386503763,1758324635470,-151.0,0.0002341,2]
[386503764,1758324635479,-181.08010149,0.0002341,2]
[386503765,1758324635488,-151.0,0.0002341,2]
[386503766,1758324635497,-241.8007978,0.0002341,2]
[386503767,1758324635507,-480.0,0.00023463,2]
[386503768,1758324635516,-480.0,0.00023464,2]
[386503769,1758324635525,-480.0,0.00023464,2]
[386503770,1758324635534,-480.0,0.00023464,2]
[386503771,1758324635543,-480.0,0.00023464,2]
[386503772,1758324635554,-524.33,0.00023464,2]
[386503773,1758324635563,-480.0,0.00023464,2]
[386503774,1758324635577,-480.0,0.00023464,2]
[386503775,1758324635589,-480.0,0.00023465,2]
[386503776,1758324635602,-444.90046794,0.00023479,2]
[386503777,1758324635613,-260.0,0.00023517,2]
[386503778,1758324635626,-492.91,0.00023565,2]
[386503779,1758324635638,-480.0,0.00023565,2]
[386503780,1758324635649,-1125.65,0.00023566,2]
[386503781,1758324635659,-420.23,0.00023566,2]
[386503782,1758324635669,-480.0,0.00023737,2]
[386503783,1758324635682,-480.0,0.00023738,2]
[386503784,1758324635694,-480.0,0.00023738,2]
[386503785,1758324635705,-480.0,0.00023738,2]
[386503786,1758324635716,-480.0,0.00023738,2]
[386503787,1758324635728,-524.33,0.00023738,2]
[386503788,1758324635740,-480.0,0.00023738,2]
[386503789,1758324635751,-480.0,0.00023738,2]
[386503790,1758324635763,-480.0,0.00023739,2]
[386503791,1758324635774,-480.0,0.00023839,2]
[386503792,1758324635786,-1125.65,0.0002384,2]
[386503793,1758324635797,-150.0,0.00023845,2]
[386503794,1758324635809,-480.0,0.00024011,2]
[386503795,1758324635820,-480.0,0.00024012,2]
[386503796,1758324635834,-480.0,0.00024012,2]
[386503797,1758324635845,-480.0,0.00024012,2]
[386503798,1758324635856,-480.0,0.00024012,2]
[386503799,1758324635868,-524.33,0.00024012,2]
[386503800,1758324635879,-480.0,0.00024012,2]
[386503801,1758324635891,-480.0,0.00024012,2]
[386503802,1758324635902,-480.0,0.00024013,2]
[386503803,1758324635913,-209.717,0.00024061,5]
[386503804,1758324635924,-360.0,0.00024065,2]
[386503805,1758324635935,-480.0,0.00024113,2]
[386503806,1758324635947,-1125.65,0.00024114,2]
[386503807,1758324635958,-480.0,0.00024285,2]
[386503808,1758324635970,-480.0,0.00024286,2]
[386503809,1758324635980,-480.0,0.00024286,2]
[386503810,1758324635992,-480.0,0.00024286,2]
[386503811,1758324636002,-480.0,0.00024286,2]
[386503812,1758324636013,-524.33,0.00024286,2]
[386503813,1758324636023,-480.0,0.00024286,2]
[386503814,1758324636033,-480.0,0.00024286,2]
[386503815,1758324636044,-480.0,0.00024287,2]
[386503816,1758324636055,-2065.99,0.000243,7]
[386503817,1758324636066,-480.0,0.00024387,2]
[386503818,1758324636079,-1125.65,0.00024388,2]
[386503819,1758324636090,-480.0,0.00024559,2]
[386503820,1758324636101,-480.0,0.0002456,2]
[386503821,1758324636112,-480.0,0.0002456,2]
[386503822,1758324636123,-480.0,0.0002456,2]
[386503823,1758324636136,-480.0,0.0002456,2]
[386503824,1758324636147,-524.33,0.0002456,2]
[386503825,1758324636159,-480.0,0.0002456,2]
[386503826,1758324636171,-354.69,0.0002456,2]
[386503827,1758324636183,-480.0,0.00024561,2]
[386503828,1758324636198,-460.0,0.00024613,2]
[386503829,1758324636210,-444.90046794,0.00024632,2]
[386503830,1758324636221,-31968.55568071,0.0002465,2]
[386503831,1758324636232,-480.0,0.00024661,2]
[386503832,1758324636242,-1125.65,0.00024662,2]
[386503833,1758324636252,-480.0,0.00024833,2]
[386503834,1758324636262,-480.0,0.00024833,2]
[386503835,1758324636273,-480.0,0.00024833,2]
[386503836,1758324636284,-524.33,0.00024833,2]
[386503837,1758324636295,-480.0,0.00024833,2]
[386503838,1758324636307,-203.13,0.00024834,2]
[386503839,1758324636319,-480.0,0.00024834,2]
[386503840,1758324636334,-480.0,0.00024835,2]
[386503841,1758324636345,-318.61173722,0.00024873,2]
[386503842,1758324636356,-500.0,0.00024873,2]
[386503843,1758324636366,-500.0,0.00024873,2]
[386503844,1758324636376,-500.0,0.00024873,2]
[386503845,1758324636387,-500.0,0.00024873,2]
[386503846,1758324636398,-500.0,0.00024873,2]
[386503847,1758324636408,-500.76840483,0.00024873,2]
[386503848,1758324636418,-500.0,0.00024873,2]
[386503849,1758324636429,-500.0,0.00024873,2]
[386503850,1758324636441,-500.0,0.00024873,2]
[386503851,1758324636452,-500.0,0.00024873,2]
[386503852,1758324636463,-515.7615142,0.00024873,2]
[386503853,1758324636475,-500.55649442,0.00024873,2]
[386503854,1758324636485,-500.0,0.00024873,2]
[386503855,1758324636496,-500.0,0.00024873,2]
[386503856,1758324636506,-500.0,0.00024873,2]
[386503857,1758324636516,-500.0,0.00024873,2]
[386503858,1758324636527,-500.0,0.00024873,2]
[386503859,1758324636538,-500.0,0.00024873,2]
[386503860,1758324636549,-500.0,0.00024873,2]
[386503861,1758324636559,-500.98505181,0.00024873,2]
[386503862,1758324636570,-500.0,0.00024873,2]
[386503863,1758324636582,-500.0,0.00024873,2]
[386503864,1758324636593,-502.58235514,0.00024873,2]
[386503865,1758324636603,-500.21035453,0.00024873,2]
[386503866,1758324636614,-1851.50480529,0.000249,2]
[386503867,1758324636690,-898.78944554,0.000249,2]
[386503875,1758324638153,-582.34,0.00021099,2]
[386503876,1758324638164,-249.63929198,0.00021266,2]
[386503877,1758324638175,-254.97425678,0.00021266,2]
[386503879,1758324638286,-82.20427721,0.00021373,2]
[386503880,1758324638340,-1037.16572279,0.00021373,2]
[386503881,1758324638350,-305.54453153,0.00021373,2]
[386503882,1758324638362,-276.79546847,0.00021373,2]
[386503883,1758324638371,-1119.37,0.00021647,2]
[386503885,1758324638381,-582.34,0.00021647,2]
[386503887,1758324638390,-1119.37,0.00021921,2]
[386503889,1758324638400,-582.34,0.00021921,2]
[386503891,1758324638411,-1119.37,0.00022195,2]
[386503892,1758324638422,-582.34,0.00022195,2]
[386503893,1758324638432,-1119.37,0.00022469,2]
[386503894,1758324638442,-582.34,0.00022469,2]
[386503895,1758324638453,-1119.37,0.00022743,2]
[386503896,1758324638464,-1119.37,0.00023017,2]
[386503897,1758324638474,-1119.37,0.00023291,2]
[386503898,1758324638487,-1119.37,0.00023565,2]
[386503899,1758324638497,-117891.53463091,0.000249,2]
[386503900,1758324638511,-337251.04489026,0.000249,2]
[386503901,1758324638522,-480.0,0.00024935,2]
[386503902,1758324638532,-587.39,0.00025,30]
[386503903,1758324638541,-1071.40701559,0.00025,2]
[386503904,1758324638550,-10500.46608821,0.00025,2]
[386503905,1758324638559,-40090.33893373,0.00025,3]
[386503906,1758324638569,-233.43972884,0.00025,3]
[386503907,1758324638580,-848.13460282,0.00025,3]
[386503908,1758324638590,-480.0,0.00025107,2]
[386503909,1758324638600,-480.0,0.00025107,2]
[386503910,1758324638609,-480.0,0.00025107,2]
[386503911,1758324638619,-524.33,0.00025107,2]
[386503912,1758324638628,-371.46,0.00025107,2]
[386503913,1758324638638,-480.0,0.00025108,2]
[386503914,1758324638649,-480.0,0.00025109,2]
[386503915,1758324638659,-560.0,0.00025161,2]
[386503916,1758324638668,-480.0,0.00025209,2]
[386503917,1758324638678,-269.0,0.00025313,2]
[386503918,1758324638687,-480.0,0.00025381,2]
[386503919,1758324638697,-192.66,0.00025381,2]
[386503920,1758324638706,-541.04,0.00025381,2]
[386503921,1758324638715,-524.33,0.00025381,2]
[386503922,1758324638725,-480.0,0.00025382,2]
[386503923,1758324638735,-480.0,0.00025383,2]
[386503924,1758324638745,-500.0,0.00025421,2]
[386503925,1758324638755,-1000.0,0.00025421,2]
[386503926,1758324638765,-1000.0,0.00025421,2]
[386503927,1758324638776,-1000.0,0.00025421,2]
[386503928,1758324638785,-1000.0,0.00025421,2]
[386503929,1758324638794,-1000.0,0.00025421,2]
[386503930,1758324638804,-1000.0,0.00025421,2]
[386503931,1758324638815,-475.4855962,0.00025421,2]
[386503932,1758324638825,-480.0,0.00025483,2]
[386503933,1758324638836,-269.0,0.00025516,2]
[386503934,1758324638847,-168.0,0.00025544,2]
[386503935,1758324638857,-168.0,0.00025559,2]
[386503936,1758324638867,-417.41746185,0.0002562,2]
[386503937,1758324638880,-480.0,0.00025655,2]
[386503938,1758324638889,-524.33,0.00025655,2]
[386503939,1758324638899,-480.0,0.00025656,2]
[386503940,1758324638908,-480.0,0.00025657,2]
[386503941,1758324638917,-4321.0,0.00025706,2]
[386503942,1758324638927,-660.0,0.00025708,2]
[386503943,1758324638936,-480.0,0.00025757,2]
[386503944,1758324638946,-444.90046794,0.00025785,2]
[386503945,1758324638955,-480.0,0.00025929,2]
[386503946,1758324638965,-524.33,0.00025929,2]
[386503947,1758324638975,-480.0,0.0002593,2]
[386503948,1758324638985,-480.0,0.00025931,2]
[386503949,1758324638994,-1500.0,0.00025968,2]
[386503950,1758324639004,-1500.0,0.00025968,2]
[386503951,1758324639013,-1210.37736818,0.00025968,2]
[386503952,1758324639023,-500.0,0.00025968,2]
[386503953,1758324639033,-504.0126241,0.00025968,2]
[386503954,1758324639043,-1004.12729615,0.00025968,2]
[386503955,1758324639053,-168.0,0.00025986,2]
[386503956,1758324639063,-269.0,0.00026004,2]
[386503957,1758324639072,-150.0,0.00026012,2]
[386503958,1758324639084,-480.0,0.00026031,2]
[386503959,1758324639093,-269.0,0.00026034,2]
[386503960,1758324639103,-151.0,0.00026062,2]
[386503961,1758324639113,-151.0,0.00026062,2]
[386503962,1758324639122,-151.0,0.00026062,2]
[386503963,1758324639132,-151.0,0.00026062,2]
[386503964,1758324639142,-500.0,0.00026062,2]
[386503965,1758324639151,-151.0,0.00026062,2]
[386503966,1758324639160,-151.0,0.00026062,2]
[386503967,1758324639170,-151.0,0.00026062,2]
[386503968,1758324639179,-500.0,0.00026062,2]
[386503969,1758324639191,-157.74312269,0.00026062,2]
[386503970,1758324639201,-500.0,0.00026062,2]
[386503971,1758324639210,-151.0,0.00026062,2]
[386503972,1758324639220,-500.0,0.00026062,2]
[386503973,1758324639230,-152.21553423,0.00026062,2]
[386503974,1758324639240,-206.96162217,0.00026062,2]
[386503975,1758324639249,-151.0,0.00026062,2]
[386503976,1758324639259,-151.0,0.00026062,2]
[386503977,1758324639269,-500.0,0.00026062,2]
[386503978,1758324639279,-151.0,0.00026062,2]
[386503979,1758324639289,-151.0,0.00026062,2]
[386503980,1758324639299,-977.0,0.00026069,2]
[386503981,1758324639308,-2158.0,0.00026069,2]
[386503982,1758324639317,-634.0,0.00026069,2]
[386503983,1758324639327,-410.0,0.00026069,2]
[386503984,1758324639336,-415.167,0.00026069,2]
[386503985,1758324639346,-168.0,0.00026071,2]
[386503986,1758324639356,-269.0,0.00026101,2]
[386503987,1758324639368,-376.31,0.00026203,2]
[386503988,1758324639378,-524.33,0.00026203,2]
[386503989,1758324639387,-480.0,0.00026204,2]
[386503990,1758324639398,-480.0,0.00026205,2]
[386503991,1758324639409,-760.0,0.00026256,2]
[386503992,1758324639419,-480.0,0.00026305,2]
[386503993,1758324639428,-151.0,0.00026336,2]
[386503994,1758324639438,-151.0,0.00026336,2]
[386503995,1758324639447,-151.0,0.00026336,2]
[386503996,1758324639457,-547.0,0.00026336,2]
[386503997,1758324639467,-151.0,0.00026336,2]
[386503998,1758324639476,-151.0,0.00026336,2]
[386503999,1758324639486,-500.0,0.00026336,2]
[386504000,1758324639496,-554.87724383,0.00026336,2]
[386504001,1758324639506,-151.0,0.00026336,2]
[386504002,1758324639515,-500.0,0.00026336,2]